bitfinex/quotes_BTCUSD_20251114
["timestamp","ask_amount","ask_price","bid_price","bid_amount"]
[1763092158875,0.20190191,99058.0,99057.0,0.0035486]
[1763092159284,0.20189042,99064.0,99057.0,0.0035486]
[1763092159494,0.323,99072.0,99057.0,0.001]
[1763092159648,0.323,99072.0,99057.0,0.002]
[1763092159860,0.20188965,99065.0,99057.0,0.002]
[1763092160239,0.20188965,99065.0,99057.0,0.001]
[1763092160483,0.20188376,99067.0,99057.0,0.20290342]
[1763092160685,0.20188376,99067.0,99057.0,0.20390342]
[1763092160880,0.20188376,99067.0,99057.0,0.20290342]
[1763092161095,0.20188968,99065.0,99056.0,0.00045898]
[1763092161292,0.20190191,99058.0,99056.0,0.00045898]
[1763092161652,0.20190191,99058.0,99057.0,0.002]
[1763092162055,0.20190191,99058.0,99057.0,0.001]
[1763092162260,0.22988191,99058.0,99057.0,0.001]
[1763092162666,0.22988191,99058.0,99056.0,0.00045898]
[1763092162898,0.02798,99057.0,99056.0,0.00045898]
[1763092163089,0.02798,99057.0,99056.0,0.00145898]
[1763092163501,0.02798,99057.0,99056.0,0.00045898]
[1763092169585,0.35098,99057.0,99056.0,0.00045898]
[1763092169989,0.35098,99057.0,99056.0,0.00303351]
[1763092170597,2.39439874,99057.0,99056.0,0.00303351]
[1763092170767,2.41579821,99057.0,99056.0,1e-08]
[1763092172126,2.41679821,99057.0,99056.0,1e-08]
[1763092172814,2.44462612,99057.0,99056.0,1e-08]
[1763092173442,2.5039683,99057.0,99056.0,1e-08]
[1763092174031,2.5397237,99057.0,99056.0,1e-08]
[1763092174449,2.52255587,99057.0,99056.0,1e-08]
[1763092174863,2.4456759,99057.0,99056.0,1e-08]
[1763092175069,2.45348247,99057.0,99056.0,1e-08]
[1763092175269,2.46277547,99057.0,99056.0,1e-08]
[1763092175471,2.44569096,99057.0,99056.0,1e-08]
[1763092176251,2.49945979,99057.0,99056.0,1e-08]
[1763092177286,2.44569096,99057.0,99056.0,1e-08]
[1763092178282,2.0,99047.0,99020.0,0.0004]
[1763092178498,0.20196837,99026.0,99020.0,0.02077626]
[1763092178694,0.02139947,99025.0,99020.0,0.00053766]
[1763092179051,0.20197123,99024.0,99020.0,0.00053766]
[1763092179369,0.20197534,99022.0,99020.0,0.00053766]
[1763092179583,0.20197613,99022.0,99020.0,0.00053766]
[1763092179794,0.44124433,99030.0,99024.0,0.20197014]
[1763092180007,0.02151503,99029.0,99024.0,0.20197014]
[1763092180434,0.02151503,99029.0,99025.0,0.2019672]
[1763092180816,0.20196875,99026.0,99020.0,0.00053766]
[1763092181070,0.04598,99021.0,99020.0,0.00153766]
[1763092181445,0.04114503,99021.0,99020.0,0.00153766]
[1763092181649,0.02151503,99021.0,99020.0,0.00053766]
[1763092181974,0.02151503,99021.0,99020.0,0.00153766]
[1763092182174,0.323,99023.0,99020.0,0.00153766]
[1763092182175,0.02151503,99022.0,99020.0,0.00153766]
[1763092182381,0.02151503,99022.0,99020.0,0.00053766]
[1763092182758,0.02151503,99022.0,99020.0,0.00153766]
[1763092183138,0.22349227,99022.0,99020.0,0.00253766]
[1763092183338,0.20197724,99022.0,99020.0,0.00153766]
[1763092183644,0.20197724,99022.0,99020.0,0.00253766]
[1763092184057,0.20197035,99025.0,99020.0,0.00153766]
[1763092184278,0.02150118,99024.0,99020.0,0.00153766]
[1763092184479,0.02150118,99024.0,99020.0,0.00253766]
[1763092184718,0.02150118,99024.0,99023.0,0.0008556]
[1763092185091,0.02150118,99027.0,99023.0,0.0008556]
[1763092185293,0.20197083,99025.0,99020.0,0.00253766]
[1763092185498,0.02150118,99024.0,99020.0,0.00253766]
[1763092185693,0.20196308,99028.0,99020.0,0.00153766]
[1763092185980,0.02150118,99027.0,99023.0,0.20297146]
[1763092186206,0.02150118,99029.0,99025.0,0.20196903]
[1763092186425,0.02150118,99031.0,99024.0,0.20197123]
[1763092186779,0.02689634,99045.0,99027.0,0.1006426]
[1763092186993,0.25031677,99053.0,99044.0,0.20192881]
[1763092187207,0.22342352,99052.0,99044.0,0.20192854]
[1763092187412,0.02150749,99051.0,99044.0,0.20192854]
[1763092187618,0.02150749,99051.0,99046.0,0.20192622]
[1763092187821,0.02150749,99051.0,99044.0,0.20192854]
[1763092187822,0.201914,99053.0,99044.0,0.20192854]
[1763092187969,0.02150749,99052.0,99041.0,0.20193454]
[1763092188187,0.22342367,99052.0,99041.0,0.20193544]
[1763092188384,0.20191822,99050.0,99030.0,0.01009795]
[1763092188595,0.20191618,99052.0,99046.0,0.20192637]
[1763092188596,0.02150749,99049.0,99046.0,0.20192637]
[1763092188772,0.02150749,99051.0,99030.0,0.01009795]
[1763092188973,0.20194042,99040.0,99030.0,0.21205525]
[1763092189157,0.20191379,99053.0,99030.0,0.01009795]
[1763092189363,0.02151645,99052.0,99043.0,0.1006426]
[1763092189593,0.22154006,99055.0,99043.0,0.1006426]
[1763092189793,0.20192269,99048.0,99043.0,0.1006426]
[1763092189992,0.02151645,99047.0,99043.0,0.1006426]
[1763092190194,0.20192809,99046.0,99039.0,0.20193991]
[1763092190721,0.20193305,99043.0,99036.0,0.20194603]
[1763092191299,0.01963,99055.0,99020.0,0.47188095]
[1763092191484,0.20193898,99040.0,99033.0,0.20195116]
[1763092192035,0.20193898,99040.0,99030.0,0.201959]
[1763092192464,0.20193898,99040.0,99032.0,0.20195311]
[1763092192671,0.20193898,99040.0,99031.0,0.20195696]
[1763092192672,0.20193413,99043.0,99035.0,0.20194751]
[1763092192879,0.20193876,99040.0,99033.0,0.20195288]
[1763092193297,0.20193876,99040.0,99034.0,0.20194881]
[1763092194115,0.20089771,99042.0,99034.0,0.20194881]
[1763092194323,0.20194034,99040.0,99034.0,0.05045504]
[1763092195124,0.2019405,99040.0,99034.0,0.05045504]
[1763092195286,0.01963,99043.0,99028.0,0.20196299]
[1763092195485,0.20194471,99038.0,99029.0,0.20195934]
[1763092195699,0.20194471,99038.0,99031.0,0.20195685]
[1763092196149,0.20194841,99036.0,99030.0,0.201959]
[1763092196357,0.20196541,99027.0,99020.0,0.00053766]
[1763092196526,0.01963,99028.0,99020.0,0.00053766]
[1763092196731,0.01963,99028.0,99026.0,0.0007778]
[1763092196933,0.01963,99028.0,99020.0,0.00053766]
[1763092197134,0.20193662,99041.0,99027.0,0.1006426]
[1763092197336,0.07342269,99067.0,99020.0,0.02079004]
[1763092197337,0.2019448,99037.0,99030.0,0.20195893]
[1763092197539,0.44124433,99040.0,99020.0,0.02079004]
[1763092197819,0.20197734,99022.0,99020.0,0.00153766]
[1763092198226,0.20197734,99022.0,99020.0,0.00053766]
[1763092198451,0.20197734,99022.0,99020.0,0.00153766]
[1763092198855,0.20197734,99022.0,99020.0,0.00053766]
[1763092199055,0.20197734,99022.0,99020.0,0.00153766]
[1763092199478,0.20197734,99022.0,99020.0,0.00053766]
[1763092199865,0.20197483,99023.0,99020.0,0.00053766]
[1763092200318,0.20197483,99023.0,99020.0,0.00153766]
[1763092200760,0.20197109,99025.0,99020.0,0.00053766]
[1763092200970,0.01963,99029.0,99020.0,0.00053766]
[1763092201175,0.2019716,99024.0,99020.0,0.00053766]
[1763092201535,0.20196308,99028.0,99020.0,0.00053766]
[1763092201854,0.20196308,99028.0,99021.0,0.20197735]
[1763092202069,0.20196772,99026.0,99020.0,0.00053766]
[1763092202385,0.20196919,99025.0,99020.0,0.20251652]
[1763092202790,0.20196512,99027.0,99024.0,0.00082967]
[1763092202992,0.20196512,99027.0,99020.0,0.20251652]
[1763092203308,0.02027,99037.0,99026.0,0.0007778]
[1763092203525,0.02027,99037.0,99020.0,0.00053766]
[1763092203526,0.02155391,99043.0,99041.0,0.20193647]
[1763092203807,0.02156215,99054.0,99048.0,0.20192143]
[1763092203932,0.01009489,99060.0,99052.0,0.20191405]
[1763092204143,0.01009489,99060.0,99050.0,0.20191679]
[1763092204144,0.2019069,99056.0,99050.0,0.20191679]
[1763092204485,0.20190241,99058.0,99052.0,0.20191348]
[1763092204809,0.323,99057.0,99050.0,0.20191679]
[1763092205099,0.32345833,99057.0,99052.0,0.20191333]
[1763092205306,0.20192491,99047.0,99038.0,0.20194095]
[1763092205521,0.20192907,99045.0,99043.0,0.1006426]
[1763092205939,0.20192879,99045.0,99043.0,0.1006426]
[1763092206363,0.20192491,99047.0,99043.0,0.1006426]
[1763092206578,0.20192031,99049.0,99043.0,0.1006426]
[1763092206799,0.20191059,99054.0,99044.0,0.20193045]
[1763092207004,0.323,99056.0,99047.0,0.20192295]
[1763092207214,0.323,99056.0,99051.0,0.2019157]
[1763092207448,0.323,99056.0,99044.0,0.02085509]
[1763092207658,0.20193263,99043.0,99035.0,0.20194773]
[1763092207863,0.01888,99045.0,99035.0,0.02120457]
[1763092207864,0.22080867,99045.0,99035.0,0.02120457]
[1763092208062,0.01888,99045.0,99030.0,0.11074055]
[1763092208217,0.20193045,99044.0,99035.0,0.2019488]
[1763092208422,0.21897675,99045.0,99032.0,0.20195364]
[1763092208631,0.20193467,99042.0,99032.0,0.20195364]
[1763092208856,0.21897675,99045.0,99033.0,0.05146563]
[1763092209057,0.20193296,99043.0,99035.0,0.20194839]
[1763092209254,0.20193698,99041.0,99031.0,0.20195696]
[1763092209462,0.20194139,99039.0,99031.0,0.20195696]
[1763092209661,0.20193698,99041.0,99033.0,0.20195146]
[1763092209819,0.20194075,99039.0,99033.0,0.20195146]
[1763092210175,0.20194075,99039.0,99034.0,0.05146525]
[1763092210725,0.04357,99034.0,99020.0,0.01049896]
[1763092210933,0.20195288,99033.0,99024.0,0.20196936]
[1763092211106,0.20195288,99033.0,99020.0,0.01049896]
[1763092211584,0.01888,99034.0,99028.0,0.20196268]
[1763092212127,0.20194064,99039.0,99032.0,0.20195476]
[1763092212319,0.44124433,99040.0,99032.0,0.20195476]
[1763092212524,0.64318495,99040.0,99032.0,0.20195476]
[1763092212749,0.44124433,99040.0,99029.0,0.20195937]
[1763092212952,0.323,99043.0,99036.0,0.20194605]
[1763092213378,0.323,99043.0,99039.0,0.20193877]
[1763092213579,0.323,99043.0,99041.0,0.20193617]
[1763092213989,0.01888,99048.0,99044.0,0.20192964]
[1763092214137,0.34188,99048.0,99044.0,0.20192964]
[1763092214341,0.34188,99048.0,99041.0,0.20193617]
[1763092214699,0.001,99043.0,99042.0,0.0605826]
[1763092214914,0.01888,99056.0,99043.0,0.20193249]
[1763092215256,0.323,99055.0,99049.0,0.20191835]
[1763092215455,0.323,99055.0,99042.0,0.0605826]
[1763092215703,0.323,99055.0,99036.0,0.20194596]
[1763092215704,0.323,99055.0,99050.0,0.20191663]
[1763092216110,0.52490968,99055.0,99048.0,0.2019221]
[1763092216337,0.323,99055.0,99050.0,0.20191738]
[1763092216517,0.002,99055.0,99049.0,0.20192026]
[1763092216899,0.002,99055.0,99051.0,0.20191422]
[1763092217492,0.001,99055.0,99051.0,0.20191422]
[1763092217902,0.002,99055.0,99051.0,0.20191618]
[1763092218098,0.00045833,99057.0,99051.0,0.20191526]
[1763092218310,0.001,99055.0,99051.0,0.20191526]
[1763092218489,0.003,99055.0,99052.0,0.20191217]
[1763092218715,0.003,99055.0,99053.0,0.20191105]
[1763092219520,0.002,99055.0,99053.0,0.20191105]
[1763092220449,0.00045833,99057.0,99056.0,0.20190599]
[1763092221472,0.00245833,99057.0,99056.0,0.20190599]
[1763092222826,0.00345833,99057.0,99056.0,0.20190599]
[1763092223032,0.00345833,99057.0,99056.0,0.26247931]
[1763092226231,0.00345833,99057.0,99056.0,0.06057332]
[1763092226475,0.00245833,99057.0,99055.0,0.2019061]
[1763092226857,0.00145833,99057.0,99055.0,0.2019061]
[1763092227081,0.00245833,99057.0,99055.0,0.2019061]
[1763092227280,0.00145833,99057.0,99055.0,0.2019061]
[1763092227591,0.00045833,99057.0,99055.0,0.2019061]
[1763092228446,0.00045833,99057.0,99055.0,0.26247958]
[1763092233683,0.00045833,99057.0,99047.0,0.00023329]
[1763092233684,0.01891,99056.0,99047.0,0.00023329]
[1763092233930,0.00045833,99057.0,99055.0,0.20190646]
[1763092234754,0.001,99056.0,99055.0,0.20190646]
[1763092235222,0.00045833,99057.0,99055.0,0.20190646]
[1763092236507,0.00145833,99057.0,99055.0,0.20190646]
[1763092236714,0.00045833,99057.0,99055.0,0.20190646]
[1763092250411,0.00045833,99057.0,99056.0,0.20190599]
[1763092255706,0.00045833,99057.0,99055.0,0.20190604]
[1763092256121,0.20192108,99049.0,99030.0,0.11074055]
[1763092256321,0.02383,99052.0,99030.0,0.11074055]
[1763092256708,0.20192072,99049.0,99042.0,0.20193275]
[1763092257133,0.01891,99048.0,99040.0,0.20193822]
[1763092257469,0.01891,99048.0,99044.0,0.20193034]
[1763092257666,0.01891,99048.0,99042.0,0.20193451]
[1763092258133,0.2208323,99048.0,99042.0,0.20193451]
[1763092258692,0.01891,99048.0,99037.0,0.20194422]
[1763092259246,0.01891,99048.0,99045.0,0.20192666]
[1763092259858,0.22574496,99052.0,99045.0,0.20192666]
[1763092260146,0.20192023,99050.0,99043.0,0.20193054]
[1763092260763,0.20192023,99050.0,99045.0,0.20192791]
[1763092260963,0.20192023,99050.0,99043.0,0.20193054]
[1763092261193,0.20192023,99050.0,99045.0,0.201928]
[1763092261578,0.22574496,99052.0,99045.0,0.201928]
[1763092262210,0.001,99050.0,99047.0,0.20215724]
[1763092262629,0.00045833,99057.0,99049.0,0.1006426]
[1763092262813,0.001,99052.0,99047.0,0.00023329]
[1763092263252,0.00045833,99057.0,99052.0,0.20191365]
[1763092264308,0.20236432,99057.0,99052.0,0.20191365]
[1763092264486,0.00045833,99057.0,99048.0,0.2019223]
[1763092264692,0.20190599,99056.0,99048.0,0.2019223]
[1763092264889,0.00045833,99057.0,99047.0,0.20215559]
[1763092265125,0.00045833,99057.0,99055.0,0.20190743]
[1763092265843,0.00145833,99057.0,99055.0,0.20190743]
[1763092266082,0.00045833,99057.0,99055.0,0.20190743]
[1763092266321,0.00145833,99057.0,99055.0,0.20190743]
[1763092267984,0.00045833,99057.0,99055.0,0.20190743]
[1763092268198,0.00045833,99057.0,99049.0,0.20191838]
[1763092268397,0.00145833,99057.0,99050.0,0.1006426]
[1763092268628,0.00145833,99057.0,99053.0,0.2019121]
[1763092269071,0.20191806,99051.0,99043.0,0.20193226]
[1763092269283,0.20191583,99052.0,99046.0,0.20192466]
[1763092269496,0.20336432,99057.0,99048.0,0.1006426]
[1763092269713,0.00045833,99057.0,99048.0,0.1006426]
[1763092269916,0.20190599,99056.0,99050.0,0.20191794]
[1763092270321,0.20190599,99056.0,99030.0,0.33269822]
[1763092270322,0.03384,99056.0,99042.0,0.20193408]
[1763092270601,0.20192039,99049.0,99039.0,0.20193864]
[1763092270750,0.20192039,99049.0,99041.0,0.20193606]
[1763092270951,0.20191994,99050.0,99045.0,0.20192823]
[1763092271157,0.20191994,99050.0,99040.0,0.20193657]
[1763092271158,0.2019223,99048.0,99040.0,0.20193657]
[1763092271365,0.20191994,99050.0,99044.0,0.2019288]
[1763092271564,0.23574655,99056.0,99044.0,0.2019288]
[1763092271565,0.20191006,99054.0,99045.0,0.1006426]
[1763092272386,0.20191612,99052.0,99046.0,0.20192461]
[1763092272603,0.20191612,99052.0,99045.0,0.1006426]
[1763092272797,0.01717,99048.0,99039.0,0.20194029]
[1763092273078,0.01717,99048.0,99041.0,0.2019361]
[1763092273592,0.01717,99048.0,99043.0,0.20193202]
[1763092273761,0.01717,99048.0,99047.0,0.20215762]
[1763092274126,0.001,99054.0,99047.0,0.20215762]
[1763092274339,0.2019081,99055.0,99049.0,0.20191836]
[1763092274914,0.17159033,99053.0,99047.0,0.20215762]
[1763092275116,0.17159033,99053.0,99049.0,0.20192025]
[1763092275929,0.17159033,99053.0,99048.0,0.20192036]
[1763092276135,0.17159033,99053.0,99047.0,0.20215762]
[1763092276920,0.20191664,99051.0,99047.0,0.20215762]
[1763092277103,0.01717,99054.0,99048.0,0.20192058]
[1763092277315,0.01717,99054.0,99047.0,0.00023329]
[1763092277316,0.01717,99054.0,99052.0,0.20191383]
[1763092277558,0.001,99053.0,99052.0,0.22431378]
[1763092277770,0.00045833,99057.0,99056.0,0.20190599]
[1763092278974,0.3879461,99080.0,99075.0,0.20186639]
[1763092279175,0.323,99082.0,99075.0,0.20200405]
[1763092280196,0.323,99084.0,99077.0,0.20186311]
[1763092281053,0.323,99082.0,99075.0,0.20200405]
[1763092281279,0.323,99082.0,99077.0,0.20186307]
[1763092281416,0.323,99082.0,99077.0,0.24852313]
[1763092281625,0.323,99082.0,99077.0,0.20186307]
[1763092282019,0.323,99082.0,99075.0,0.20200405]
[1763092282224,0.20185504,99081.0,99075.0,0.00013766]
[1763092282430,0.20186364,99077.0,99075.0,0.00013766]
[1763092283217,0.20185914,99079.0,99075.0,0.00013766]
[1763092283846,0.20186397,99077.0,99075.0,0.00013766]
[1763092284267,0.02381,99076.0,99075.0,0.00013766]
[1763092284470,0.20186397,99077.0,99075.0,0.00013766]
[1763092284627,0.20285972,99079.0,99075.0,0.00013766]
[1763092285004,0.001,99077.0,99075.0,0.00013766]
[1763092285642,0.20185301,99082.0,99075.0,0.00013766]
[1763092285869,0.20185898,99080.0,99075.0,0.00013766]
[1763092286046,0.20185912,99079.0,99075.0,0.00013766]
[1763092286641,0.20186328,99077.0,99075.0,0.00013766]
[1763092287335,0.04098,99076.0,99075.0,0.00013766]
[1763092287482,0.01717,99076.0,99075.0,0.00013766]
[1763092288346,0.04098,99076.0,99075.0,0.00013766]
[1763092288734,0.04198,99076.0,99075.0,0.00013766]
[1763092289279,0.24384523,99076.0,99075.0,0.00013766]
[1763092290050,0.24284523,99076.0,99075.0,0.00013766]
[1763092290245,0.24384523,99076.0,99075.0,0.00013766]
[1763092290447,0.24484523,99076.0,99075.0,0.00013766]
[1763092290619,30.24384523,99076.0,99075.0,0.00013766]
[1763092290813,30.24484523,99076.0,99075.0,0.00013766]
[1763092291222,30.24584523,99076.0,99075.0,0.00013766]
[1763092293789,30.003,99076.0,99075.0,0.00013766]
[1763092294196,30.20486523,99076.0,99075.0,0.00013766]
[1763092294610,30.20286523,99076.0,99075.0,0.00013766]
[1763092294770,30.001,99076.0,99075.0,0.00013766]
[1763092294997,30.002,99076.0,99075.0,0.00013766]
[1763092295605,30.001,99076.0,99075.0,0.00013766]
[1763092295783,30.002,99076.0,99075.0,0.00013766]
[1763092296186,30.002,99076.0,99075.0,0.20200493]
[1763092298907,30.001,99076.0,99075.0,0.20200493]
[1763092299253,30.0,99076.0,99075.0,0.20200493]
[1763092300184,30.001,99076.0,99075.0,0.00013766]
[1763092304049,30.001,99076.0,99075.0,0.20200493]
[1763092307637,30.001,99076.0,99075.0,0.00013766]
[1763092312140,30.001,99076.0,99075.0,0.20200493]
[1763092312992,30.001,99076.0,99075.0,0.00013766]
[1763092317158,30.20286523,99076.0,99075.0,0.00013766]
[1763092318059,30.001,99076.0,99075.0,0.00013766]
[1763092318867,30.001,99076.0,99075.0,0.20200493]
[1763092321063,30.001,99076.0,99075.0,0.00013766]
[1763092341501,30.0,99076.0,99075.0,0.00013766]
[1763092343211,30.0,99076.0,99075.0,0.20200493]
[1763092348889,30.0,99076.0,99075.0,0.23232083]
[1763092349944,29.53853322,99076.0,99075.0,0.55532083]
[1763092350129,29.53853322,99076.0,99075.0,0.65380419]
[1763092351075,29.53853322,99076.0,99075.0,0.65480419]
[1763092351542,27.44105116,99076.0,99075.0,0.80562293]
[1763092351744,27.44105116,99076.0,99075.0,0.80462293]
[1763092351983,27.44105116,99076.0,99075.0,0.65580419]
[1763092352535,27.44105116,99076.0,99075.0,0.65480419]
[1763092352745,27.44105116,99076.0,99075.0,0.65680419]
[1763092352945,27.44105116,99076.0,99075.0,0.65580419]
[1763092353325,27.44105116,99076.0,99075.0,0.65680419]
[1763092353529,27.44105116,99076.0,99075.0,0.65580419]
[1763092353954,27.44105116,99076.0,99075.0,0.65480419]
[1763092354167,27.44105116,99076.0,99075.0,0.65380419]
[1763092354365,27.44105116,99076.0,99075.0,0.65580419]
[1763092354769,27.44105116,99076.0,99075.0,0.65480419]
[1763092355207,27.44105116,99076.0,99075.0,0.65580419]
[1763092359163,26.985916,99076.0,99075.0,0.65580419]
[1763092361178,26.52452618,99076.0,99075.0,0.69922293]
[1763092361703,26.06023679,99076.0,99075.0,0.84492293]
[1763092361911,25.79172558,99076.0,99075.0,0.84492293]
[1763092362085,25.49687358,99076.0,99075.0,0.84492293]
[1763092362471,25.22015833,99076.0,99075.0,0.84492293]
[1763092364932,24.75726401,99076.0,99075.0,0.84492293]
[1763092365355,24.45195991,99076.0,99075.0,0.84492293]
[1763092365513,23.86286818,99076.0,99075.0,0.95132293]
[1763092365937,23.59229503,99076.0,99075.0,0.95132293]
[1763092366145,23.34928411,99076.0,99075.0,0.95032293]
[1763092366354,23.1047005,99076.0,99075.0,0.94932293]
[1763092366571,23.10372433,99076.0,99075.0,0.95032293]
[1763092366776,23.10372433,99076.0,99075.0,0.95132293]
[1763092367179,23.10372433,99076.0,99075.0,0.94932293]
[1763092367380,22.96302433,99076.0,99075.0,0.94932293]
[1763092367613,22.96802433,99076.0,99075.0,0.94932293]
[1763092367879,22.38666864,99076.0,99075.0,0.94932293]
[1763092368030,22.38666864,99076.0,99075.0,0.85083957]
[1763092368031,21.60560423,99076.0,99075.0,0.85083957]
[1763092368238,21.43433704,99076.0,99075.0,0.85083957]
[1763092368437,21.17954648,99076.0,99075.0,0.85083957]
[1763092368640,21.17670054,99076.0,99075.0,0.85083957]
[1763092368840,20.3024898,99076.0,99075.0,0.85083957]
[1763092369630,20.2924898,99076.0,99075.0,0.85083957]
[1763092370047,20.3014898,99076.0,99075.0,0.85083957]
[1763092370276,20.2964898,99076.0,99075.0,0.85083957]
[1763092370485,20.2974898,99076.0,99075.0,0.85083957]
[1763092370885,20.3024898,99076.0,99075.0,0.85083957]
[1763092373313,19.84363071,99076.0,99075.0,0.85083957]
[1763092373758,19.33169278,99076.0,99075.0,0.85083957]
[1763092373975,19.13603597,99076.0,99075.0,0.85083957]
[1763092374367,18.73646951,99076.0,99075.0,0.85083957]
[1763092375734,18.61974778,99076.0,99075.0,0.85083957]
[1763092376533,18.16507174,99076.0,99075.0,0.85083957]
[1763092377663,17.54348713,99076.0,99075.0,0.85083957]
[1763092377920,17.34039483,99076.0,99075.0,0.85083957]
[1763092378120,17.34039483,99076.0,99075.0,0.60555356]
[1763092378346,17.34039483,99076.0,99075.0,0.48442083]
[1763092378738,17.33539483,99076.0,99075.0,0.85083957]
[1763092378950,17.33039483,99076.0,99075.0,0.85083957]
[1763092379173,17.33939483,99076.0,99075.0,0.85083957]
[1763092379483,17.33439483,99076.0,99075.0,0.85083957]
[1763092379729,17.33539483,99076.0,99075.0,0.85083957]
[1763092379919,17.33539483,99076.0,99075.0,0.6489723]
[1763092379920,17.33039483,99076.0,99075.0,0.6489723]
[1763092380121,17.33539483,99076.0,99075.0,0.6489723]
[1763092380304,17.34139483,99076.0,99075.0,0.6489723]
[1763092381035,17.33639483,99076.0,99075.0,0.6489723]
[1763092381557,17.33039483,99076.0,99075.0,0.6489723]
[1763092381731,17.33039483,99076.0,99075.0,0.3968723]
[1763092381933,17.33239483,99076.0,99075.0,0.3968723]
[1763092382772,17.33039483,99076.0,99075.0,0.3968723]
[1763092382897,17.33039483,99076.0,99075.0,0.3978723]
[1763092383095,17.33539483,99076.0,99075.0,0.3978723]
[1763092383515,17.33039483,99076.0,99075.0,0.59973957]
[1763092383922,17.33039483,99076.0,99075.0,0.70713957]
[1763092385161,17.33039483,99076.0,99075.0,0.85283957]
[1763092385437,17.33039483,99076.0,99075.0,0.85183957]
[1763092385633,17.10259892,99076.0,99075.0,0.85183957]
[1763092385841,16.6125528,99076.0,99075.0,0.85083957]
[1763092386017,16.6175528,99076.0,99075.0,0.87106957]
[1763092386219,15.38993641,99076.0,99075.0,0.94547531]
[1763092386428,15.07803336,99076.0,99075.0,2.80504531]
[1763092386889,14.83378845,99076.0,99075.0,2.80504531]
[1763092387281,14.82878845,99076.0,99075.0,2.80504531]
[1763092387538,14.83278845,99076.0,99075.0,2.73063957]
[1763092387736,14.82778845,99076.0,99075.0,2.73063957]
[1763092388152,14.83178845,99076.0,99075.0,0.71040957]
[1763092388359,14.82778845,99076.0,99075.0,0.66699083]
[1763092388691,14.83178845,99076.0,99075.0,0.71040957]
[1763092388897,14.82378845,99076.0,99075.0,0.71040957]
[1763092389097,14.82778845,99076.0,99075.0,0.03045356]
[1763092389294,14.83178845,99076.0,99075.0,0.03045356]
[1763092389500,14.83178845,99076.0,99075.0,0.0738723]
[1763092389757,14.82778845,99076.0,99075.0,0.0738723]
[1763092389898,14.82778845,99076.0,99075.0,0.3968723]
[1763092390097,14.83178845,99076.0,99075.0,0.3968723]
[1763092390505,14.82778845,99076.0,99075.0,0.3968723]
[1763092391092,14.82378845,99076.0,99075.0,0.3968723]
[1763092391493,14.82778845,99076.0,99075.0,0.3968723]
[1763092391695,14.82378845,99076.0,99075.0,0.3968723]
[1763092391922,14.82878845,99076.0,99075.0,0.59873957]
[1763092392139,14.83278845,99076.0,99075.0,0.59873957]
[1763092392651,14.82778845,99076.0,99075.0,0.59873957]
[1763092392974,14.82878845,99076.0,99075.0,0.59873957]
[1763092393556,14.83278845,99076.0,99075.0,0.59873957]
[1763092394617,14.83278845,99076.0,99075.0,0.70513957]
[1763092396024,14.82778845,99076.0,99075.0,0.70513957]
[1763092396225,14.60141728,99076.0,99075.0,0.70513957]
[1763092396647,14.60541728,99076.0,99075.0,0.60377257]
[1763092396888,14.60541728,99076.0,99075.0,0.77977653]
[1763092397430,12.39606769,99076.0,99075.0,2.63407653]
[1763092397701,11.38149138,99076.0,99075.0,3.17529841]
[1763092397848,11.23163967,99076.0,99075.0,3.17341829]
[1763092398053,10.84512832,99076.0,99075.0,3.57341829]
[1763092398212,10.36900448,99076.0,99075.0,3.57341829]
[1763092398419,10.08454166,99076.0,99075.0,3.57341829]
[1763092398629,9.79179589,99076.0,99075.0,3.64814828]
[1763092398841,9.28656571,99076.0,99075.0,3.64814828]
[1763092399051,8.1352573,99076.0,99075.0,3.58741828]
[1763092399288,7.76024779,99076.0,99075.0,3.58741828]
[1763092399488,7.23665209,99076.0,99075.0,3.58741828]
[1763092399785,6.86333236,99076.0,99075.0,3.58741828]
[1763092400033,6.16507687,99076.0,99075.0,3.58741828]
[1763092400213,6.13479164,99076.0,99075.0,3.52402669]
[1763092400418,5.91994968,99076.0,99075.0,3.52402669]
[1763092400726,5.51465925,99076.0,99075.0,3.52402669]
[1763092400957,5.48137402,99076.0,99075.0,3.52402669]
[1763092401151,4.75731988,99076.0,99075.0,3.52402669]
[1763092401286,4.53376891,99076.0,99075.0,3.52402669]
[1763092401487,4.392546,99076.0,99075.0,3.52402669]
[1763092401690,4.23245311,99076.0,99075.0,3.52402669]
[1763092401929,4.11816845,99076.0,99075.0,3.52402669]
[1763092402129,3.81683574,99076.0,99075.0,3.52402669]
[1763092402293,3.60143097,99076.0,99075.0,3.52402669]
[1763092402520,3.23959908,99076.0,99075.0,3.27812669]
[1763092402715,3.10437771,99076.0,99075.0,3.27812669]
[1763092402903,2.97285501,99076.0,99075.0,3.27812669]
[1763092403107,1.85123261,99076.0,99075.0,3.27812669]
[1763092403348,1.7106658,99076.0,99075.0,3.27812669]
[1763092403524,1.61759424,99076.0,99075.0,3.27812669]
[1763092403727,1.58730499,99076.0,99075.0,3.27812669]
[1763092403928,1.58730499,99076.0,99075.0,2.95319026]
[1763092404508,1.58730499,99076.0,99075.0,2.50977152]
[1763092404922,1.58730499,99076.0,99075.0,2.83277152]
[1763092405145,1.58730499,99076.0,99075.0,2.87619026]
[1763092405326,1.58530499,99076.0,99075.0,2.87619026]
[1763092405541,1.58230499,99076.0,99075.0,2.87619026]
[1763092405745,1.58530499,99076.0,99075.0,2.40337152]
[1763092405960,1.58830499,99076.0,99075.0,2.40337152]
[1763092406170,1.58830499,99076.0,99075.0,2.72637152]
[1763092406328,1.58830499,99076.0,99075.0,2.76979026]
[1763092406524,1.58830499,99076.0,99075.0,2.74956026]
[1763092406732,1.58830499,99076.0,99075.0,0.03030396]
[1763092407250,1.58830499,99076.0,99075.0,0.35330396]
[1763092407586,1.58530499,99076.0,99075.0,0.35330396]
[1763092408189,1.58930499,99076.0,99075.0,0.35330396]
[1763092408385,1.58230499,99076.0,99075.0,0.35330396]
[1763092408594,1.58530499,99076.0,99075.0,0.55517123]
[1763092408793,1.58930499,99076.0,99075.0,0.55517123]
[1763092409097,1.58930499,99076.0,99075.0,0.52486727]
[1763092411008,1.58930499,99076.0,99075.0,0.54509727]
[1763092411407,1.58930499,99076.0,99075.0,0.69079727]
[1763092412042,1.58930499,99076.0,99075.0,0.54509727]
[1763092413408,1.58930499,99076.0,99075.0,0.58851601]
[1763092414419,1.58230499,99076.0,99075.0,0.58851601]
[1763092414616,1.58530499,99076.0,99075.0,0.58851601]
[1763092414847,1.58830499,99076.0,99075.0,0.58851601]
[1763092416098,1.58830499,99076.0,99075.0,0.38664874]
[1763092416302,1.58830499,99076.0,99075.0,0.58851601]
[1763092416456,1.58830499,99076.0,99075.0,0.54509727]
[1763092417981,1.58830499,99076.0,99075.0,0.34323]
[1763092419469,1.58830499,99076.0,99075.0,0.54509727]
[1763092419646,1.58830499,99076.0,99075.0,0.65149727]
[1763092420289,1.58830499,99076.0,99075.0,0.44963]
[1763092422511,1.58830499,99076.0,99075.0,0.323]